Cogmind - Beta 10.1 @@@ ROGUE MODE // 2020.10.09 @ 21:41:46 Player: Basking Result: Destroyed by B-74 Champion with Powered Hammer Performance ------------- Evolutions (8) 4000 Regions Visited (15) 3000 Robots Destroyed (60) 300 Value Destroyed (2999) 2999 Prototype IDs (33) 660 Alien Tech Used (0) 0 Bonus (1158) 1158 TOTAL SCORE: 12117 Bonus ------- High Alert Combat Kills 16 Follower Combat Kills 157 Entered Garrisons 200 Used RIF Installer 500 Aligned with FarCom 300 Friendly Fire -15 Cogmind --------- Core Integrity 0/1450 Matter 173/300 Energy 54/100 System Corruption 20% Temperature Cool (0) Movement Core (50) Location -2/Research Parts ------- > --- POWER (3) -------- (None) > --- PROPULSION (8) --- (None) > --- UTILITY (10) ----- (None) > --- WEAPON (2) ------- (None) > --- INVENTORY (4) ---- High-capacity Storage Unit Heavy Machine Gun Mini Grenade Launcher Stasis Projector Peak State ------------ > --- POWER ------------ Micro Fission Core Light Antimatter Reactor Light Quantum Reactor > --- PROPULSION ------- Medium Treads Improved Medium Treads Advanced Medium Treads Experimental Biometal Heavy Treads Xenon Bombardment Thruster Xenon Bombardment Thruster Xenon Bombardment Thruster > --- UTILITY ---------- Advanced Cooling System High-capacity Storage Unit Improved Energy Well Long-range Sensor Array Advanced Signal Interpreter Advanced Terrain Scan Processor Advanced ECM Suite Antimissile System Hacking Suite System Shield > --- WEAPON ----------- Heavy Machine Gun Heavy Machine Gun > --- INVENTORY -------- Antigrav Array Advanced Heat Sink High-capacity Storage Unit Quantum Capacitor Railgun Mini Grenade Launcher Stasis Projector [Rating: 129] Favorites ----------- Power Micro Fission Core Engine Reinforced Ion Engine Power Core Micro Fission Core Reactor Light Antimatter Reactor Propulsion Flying Fortress v7 Treads Light Treads Wheel Compact Wheel Hover Unit Antigrav Array Flight Unit Flying Fortress v7 Utility Hacking Suite Device Advanced Cooling System Storage High-capacity Storage Unit Processor Advanced Terrain Scan Processor Hackware Hacking Suite Protection Improved Medium Armor Plating Weapon Light Assault Rifle Energy Gun Phase Gun Energy Cannon Heavy Phase Cannon Ballistic Gun Light Assault Rifle Ballistic Cannon Gauss Cannon Launcher Mini Grenade Launcher Special Weapon Improved Remote Datajack Build | -11 -10 -10 -10 -9 -8 -7 -6 -5 -5 -5 -4 -3 -2 -2 -2 ------- Run | Scr Mat Min Exi Min Mat Fac Fac Fac Upp Upp Fac Res Res Gar Res Slots Evolved 16 | . . . . . 4 2 2 2 . . 2 2 2 . . Power 2 | . . . . . . 1 . . . . . 1 . . . Propulsion 6 | . . . . . 2 . . 1 . . 1 1 1 . . Utility 8 | . . . . . 2 1 2 1 . . 1 . 1 . . Weapon . | . . . . . . . . . . . . . . . . Parts Attached 155 | 7 10 . 2 12 14 7 7 13 9 8 17 11 7 14 17 Power 17 | 1 1 . . 1 . 3 1 1 . 1 3 2 . 2 1 Engine 7 | 1 1 . . 1 . 3 . . . 1 . . . . . Core 4 | . . . . . . . 1 1 . . 2 . . . . Reactor 6 | . . . . . . . . . . . 1 2 . 2 1 Propulsion 21 | 2 . . . 2 1 . . 3 . . 1 2 1 6 3 Treads 8 | . . . . 2 . . . . . . . 2 1 2 1 Leg . | . . . . . . . . . . . . . . . . Wheel 2 | 2 . . . . . . . . . . . . . . . Hover 2 | . . . . . . . . 1 . . . . . . 1 Flight 9 | . . . . . 1 . . 2 . . 1 . . 4 1 Utility 59 | 1 6 . 2 5 9 2 2 7 2 2 6 4 6 1 4 Device 25 | . 2 . . 1 1 . 1 7 1 . 3 1 4 1 3 Storage 14 | 1 4 . 2 4 1 . . . . . 1 1 . . . Processor 6 | . . . . . 2 . . . 1 . . . 2 . 1 Hackware 3 | . . . . . . 1 1 . . . 1 . . . . Protection 11 | . . . . . 5 1 . . . 2 1 2 . . . Artifact . | . . . . . . . . . . . . . . . . Weapon 58 | 3 3 . . 4 4 2 4 2 7 5 7 3 . 5 9 Energy Gun 12 | 2 . . . 1 . . . . 5 1 3 . . . . Energy Cannon 5 | . . . . . . . 1 . . . 3 . . 1 . Ballistic Gun 25 | 1 3 . . 2 2 2 2 1 . 2 . 2 . 1 7 Ballistic Cannon 2 | . . . . . . . 1 1 . . . . . . . Launcher 10 | . . . . 1 2 . . . 1 2 1 1 . 1 1 Special Weapon 4 | . . . . . . . . . 1 . . . . 2 1 Impact Weapon . | . . . . . . . . . . . . . . . . Slashing Weapon . | . . . . . . . . . . . . . . . . Piercing Weapon . | . . . . . . . . . . . . . . . . Special Melee Weapon . | . . . . . . . . . . . . . . . . Unidentified Prototypes 5 | . . . . 1 . . 1 . . . 1 . 1 . 1 Parts Lost 45 | . 2 . . 1 . 2 . . . 6 . 10 1 5 18 Power 8 | . 1 . . 1 . . . . . 1 . 2 . . 3 Propulsion 11 | . . . . . . . . . . 1 . 1 . 4 5 Utility 18 | . . . . . . 1 . . . 2 . 5 1 . 9 Weapon 8 | . 1 . . . . 1 . . . 2 . 2 . 1 1 Highest Loss Streak 9 | . 2 . . 1 . 2 . . . 6 . 9 1 3 8 Average Slot Usage (%) 82 | . 85 100 99 99 71 75 76 80 81 72 77 72 66 76 84 Engine 6 | . 8 14 14 13 9 15 9 4 . 2 1 . . . . Core 2 | . . . . . . . 3 5 11 7 8 4 4 4 3 Reactor 2 | . . . . . . . . . . . . 7 4 4 6 Treads 7 | . . . . 26 . . . . . . . 1 8 13 13 Wheel 3 | . 28 28 28 . . . . . . . . . . . . Flight 5 | . . . . . 8 7 6 11 11 7 9 8 4 4 10 Device 6 | . . . . . 3 . 3 10 11 11 9 7 12 15 15 Storage 12 | . 21 28 27 27 10 7 6 5 5 5 5 4 8 8 7 Processor 2 | . . . . . . . . . 4 5 5 4 6 8 7 Hackware 6 | . . . . . . 7 13 11 11 11 14 13 8 8 7 Protection 7 | . . . . . 20 21 20 17 11 8 10 8 . . . Energy Gun 1 | . 11 . . . . . . . 5 3 2 3 . . . Ballistic Gun 12 | . 14 28 28 28 16 13 12 10 . 5 3 . 4 2 6 Naked Turns 11 | . . . . . . . . . . . . . . . 11 Heaviest Build 93 | 10 12 12 21 34 61 70 72 83 70 72 86 93 69 88 89 Greatest Support 173 | 26 26 26 26 40 72 72 72 80 80 80 95 95 128 158 173 Greatest Overweight (x) 9 | . . . . 9 . . . 1 . . . . 1 . . Average Overweight (x) . | . . . . . . . . . . . . . . . . Largest Inventory Capacity 16 | 6 6 6 12 12 16 12 12 12 12 12 12 12 12 12 12 Average Capacity 11 | 5 6 6 7 11 12 12 12 12 12 12 12 12 12 12 11 Most Carried 12 | 4 6 6 7 12 12 12 12 12 12 12 12 11 7 10 9 Average Carried 8 | 2 4 6 6 8 11 11 11 10 11 9 10 8 4 6 6 Final Capacity 12 | 6 6 6 12 12 12 12 12 12 12 12 12 12 12 12 4 Final Carried 12 | 4 6 6 7 12 11 12 12 11 12 8 11 4 6 8 4 Class Distribution -------------------- 38% | Mutant 20% | Hacker-Mutant 13% | Hacker-Scout 12% | Scavenger-Skirmisher 7% | Hacker-Skirmisher 4% | Scout Dominant Class ---------------- Mutant | -10/Materials Mutant | -10/Mines Mutant | -10/Exiles Mutant | -9/Mines Mutant | -8/Materials Mutant | -7/Factory Hacker-Mutant | -6/Factory Hacker-Mutant | -5/Factory Hacker-Mutant | -5/Upper Caves Hacker-Mutant | -5/Upper Caves Hacker-Scout | -4/Factory Hacker-Scout | -3/Research Hacker-Skirmisher | -2/Research Hacker-Skirmisher | -2/Garrison Scavenger-Skirmisher | -2/Research Resources | -11 -10 -10 -10 -9 -8 -7 -6 -5 -5 -5 -4 -3 -2 -2 -2 ----------- Run | Scr Mat Min Exi Min Mat Fac Fac Fac Upp Upp Fac Res Res Gar Res Matter Collected 2471 | 211 147 . . 287 244 118 77 . 180 284 240 170 . 305 208 Remotely 10 | . 10 . . . . . . . . . . . . . . Salvage Created 2865 | . 147 . . 123 240 61 89 89 120 701 456 220 . 378 241 Parts 120 | . 6 . . 7 14 5 3 3 5 29 21 5 . 16 6 Haulers Intercepted . | . . . . . . . . . . . . . . . . Recyclers Shooed 2 | . 1 . . . . . . . . . 1 . . . . Parts Field Recycled 3 | . . . . . . . . 3 . . . . . . . Retrieved Matter 84 | . . . . . . . . 84 . . . . . . . Parts Self-Destructed 8 | . . . . . . . . . . 8 . . . . . Prevented 10 | . . . . . . . . . 2 8 . . . . . Kills | -11 -10 -10 -10 -9 -8 -7 -6 -5 -5 -5 -4 -3 -2 -2 -2 ------- Run | Scr Mat Min Exi Min Mat Fac Fac Fac Upp Upp Fac Res Res Gar Res Combat Hostiles Destroyed 55 | . 2 . . 3 4 1 1 1 4 16 5 4 . 8 6 Guns 24 | . 2 . . 3 4 1 1 1 . 4 4 1 . 1 2 Cannons 4 | . . . . . . . . . . . 1 . . 3 . AOE 24 | . . . . . . . . . 3 11 . 3 . 3 4 Classes Destroyed 9 | . 2 . . 2 2 1 . . . . 1 . . . 1 Worker 1 | . . . . . . . . . . . 1 . . . . Recycler 1 | . 1 . . . . . . . . . . . . . . Operator 1 | . . . . . . 1 . . . . . . . . . Watcher 2 | . . . . . 1 . . . . . 1 . . . . Swarmer 16 | . . . . 1 . . . . 4 6 . . . 5 . Grunt 25 | . 2 . . 1 1 . . . . 9 2 4 . 2 4 Brawler 1 | . . . . 1 . . . . . . . . . . . Sentry 10 | . . . . . 3 . 1 1 . 1 3 . . 1 . Programmer 2 | . . . . . . . . . . . . . . . 2 Thug 1 | . . . . . . 1 . . . . . . . . . Best Kill Streak 19 | . 2 . . 2 2 1 1 1 4 19 4 2 . 6 4 Combat Bots Only 19 | . 2 . . 2 1 1 1 1 4 19 2 2 . 6 4 Max Kills in Single Turn 5 | . 1 . . 1 1 1 1 1 2 5 1 2 . 3 2 Gunslinging . | . . . . . . . . . . . . . . . . Exploded 5 | . . . . . . . . . 2 5 . 2 . 2 2 Melee . | . . . . . . . . . . . . . . . . Uniques/NPCs Destroyed . | . . . . . . . . . . . . . . . . Combat | -11 -10 -10 -10 -9 -8 -7 -6 -5 -5 -5 -4 -3 -2 -2 -2 -------- Run | Scr Mat Min Exi Min Mat Fac Fac Fac Upp Upp Fac Res Res Gar Res Damage Taken 9428 | . 227 . . 111 149 255 33 202 249 1344 734 1219 . 1677 3228 Core 1975 | . 70 . . 15 17 37 . 51 17 111 113 93 . 165 1286 Absorbed by Shields . | . . . . . . . . . . . . . . . . Core Remaining (%) 90 | 100 . . . 66 96 94 100 . . 82 90 92 . . . Volleys Fired 164 | . 13 . . 12 17 3 5 6 7 19 28 15 . 20 19 Largest 2 | . 2 . . 2 2 2 2 2 1 2 2 2 . 2 2 Hottest 186 | . 90 . . 40 56 60 56 56 39 130 186 186 . 133 60 Shots Fired 304 | . 25 . . 24 34 6 10 12 7 34 56 26 . 36 34 Gun 222 | . 25 . . 24 34 2 10 12 . 26 38 17 . 10 24 Cannon 36 | . . . . . . . . . . . 18 2 . 16 . Launcher 43 | . . . . . . 4 . . 7 8 . 7 . 7 10 Special 3 | . . . . . . . . . . . . . . 3 . Kinetic 161 | . 6 . . 24 34 2 10 12 . 9 26 4 . 10 24 Thermal 80 | . 19 . . . . . . . . . 30 15 . 16 . Explosive 33 | . . . . . . 4 . . . 5 . 7 . 7 10 Electromagnetic 27 | . . . . . . . . . 7 20 . . . . . Robot Hit Streak 18 | . 11 . . 7 6 8 9 3 4 9 13 5 . 18 13 Robot Miss Streak 6 | . 2 . . 6 2 . 2 2 1 4 4 2 . 1 1 Penetration Max 1 | . . . . . 1 . . . . 1 . 1 . . . Secondary Targets 2 | . . . . 1 . . . . . 1 . . . . . Max Gunslinging Chain 1 | . . . . 1 . . . . . 1 . . . . . Shots Hit Robots 204 | . 19 . . 15 22 2 5 7 5 25 37 17 . 28 22 Core Hits 154 | . 8 . . 6 8 4 3 3 5 32 18 22 . 20 25 Critical Hits 2 | . . . . . 1 . . 1 . . . . . . . Critical Kills . | . . . . . . . . . . . . . . . . Critical Parts Destroyed 1 | . . . . . 1 . . . . . . . . . . Melee Attacks . | . . . . . . . . . . . . . . . . Impact . | . . . . . . . . . . . . . . . . Slashing . | . . . . . . . . . . . . . . . . Piercing . | . . . . . . . . . . . . . . . . Sneak Attacks . | . . . . . . . . . . . . . . . . Combat Hostiles . | . . . . . . . . . . . . . . . . Follow-up Attacks . | . . . . . . . . . . . . . . . . Damage Inflicted 7517 | . 177 . . 110 422 138 84 154 274 1625 1097 1100 . 1001 1335 Guns 3174 | . 177 . . 110 422 53 84 154 . 483 720 342 . 229 400 Cannons 865 | . . . . . . . . . . . 377 33 . 455 . Explosions 3431 | . . . . . . 85 . . 274 1142 . 725 . 317 888 Melee . | . . . . . . . . . . . . . . . . Ramming 47 | . . . . . . . . . . . . . . . 47 Kinetic 2183 | . 30 . . 110 422 53 84 154 . 160 437 104 . 229 400 Thermal 1810 | . 147 . . . . . . . . 277 660 271 . 455 . Explosive 2511 | . . . . . . 85 . . . 496 . 725 . 317 888 Electromagnetic 966 | . . . . . . . . . 274 692 . . . . . Impact . | . . . . . . . . . . . . . . . . Slashing . | . . . . . . . . . . . . . . . . Piercing . | . . . . . . . . . . . . . . . . Highest Corruption 20 | . . . . . . . . . . . . 1 . . 20 Average Corruption 6 | . . . . . . . . . . . . 1 . . 8 Corruption Purged . | . . . . . . . . . . . . . . . . Effects 12 | . . . . . . . . . . . . 1 . . 11 Message Errors 7 | . . . . . . . . . . . . 1 . . 6 Matter Fused 1 | . . . . . . . . . . . . . . . 1 Energy Discharges 1 | . . . . . . . . . . . . . . . 1 Data Loss (minor) 1 | . . . . . . . . . . . . . . . 1 Targeting Errors 1 | . . . . . . . . . . . . . . . 1 Weapon Failures 1 | . . . . . . . . . . . . . . . 1 Overload Shots . | . . . . . . . . . . . . . . . . Overflow Damage 108 | . . . . . . 51 . . . 31 8 4 . . 14 Projectiles 8 | . . . . . . . . . . . 8 . . . . Explosions 98 | . . . . . . 51 . . . 31 . 4 . . 12 Melee 2 | . . . . . . . . . . . . . . . 2 Knockbacks . | . . . . . . . . . . . . . . . . Impact . | . . . . . . . . . . . . . . . . Kinetic . | . . . . . . . . . . . . . . . . Secondary . | . . . . . . . . . . . . . . . . Self-Inflicted Damage 675 | . . . . . . 255 . . 73 90 . 84 . 57 116 Shots 22 | . . . . . . 5 . . 6 3 . 3 . 2 3 Rammed 4 | . . . . . . . . . . . . . . . 4 Targets Rammed 4 | . . . . . . . . . . . . . . . 4 Kicked . | . . . . . . . . . . . . . . . . Crushed . | . . . . . . . . . . . . . . . . Highest Temperature 198 | . 105 . . 16 143 43 46 108 62 198 194 167 . . 28 Average Temperature 76 | . 57 . . 6 50 21 21 62 31 108 114 81 . . 12 Received Heat Transfer 1410 | . 99 . . 30 81 . . 36 . 363 177 165 . 333 126 Siege Activations . | . . . . . . . . . . . . . . . . Robots Corrupted 2 | . . . . . . . . . 1 1 . . . . . Combat Hostiles 2 | . . . . . . . . . 1 1 . . . . . Parts Fried 9 | . . . . . . . . . 2 7 . . . . . Impact Corruptions 1 | . . . . . . . . . . . . . . . 1 Robots Melted 1 | . . . . . . . . . . . . . . 1 . Combat Hostiles 1 | . . . . . . . . . . . . . . 1 . Parts Melted 2 | . 1 . . . . . . . . . . . . 1 . Heat Transferred 2620 | . 384 . . . . . . . . 300 866 370 . 700 . Parts Sabotaged . | . . . . . . . . . . . . . . . . Parts Stolen . | . . . . . . . . . . . . . . . . Parts Stripped . | . . . . . . . . . . . . . . . . Power Chain Reactions 3 | . . . . . . . . . . 3 . . . . . Missiles Intercepted . | . . . . . . . . . . . . . . . . Alert | -11 -10 -10 -10 -9 -8 -7 -6 -5 -5 -5 -4 -3 -2 -2 -2 ------- Run | Scr Mat Min Exi Min Mat Fac Fac Fac Upp Upp Fac Res Res Gar Res Peak Influence 455 | . 45 17 . 90 305 217 233 128 . . 455 202 98 343 190 Initial 228 | . . 17 . . 29 54 95 114 . . 228 58 96 73 175 Average 125 | . 27 17 . 36 185 151 126 82 . . 311 105 90 169 115 Maximum Alert Level 2 | . . . . . 1 1 1 . . . 2 1 . 1 . Low Security (%) 81 | 100 100 100 . 100 44 92 84 100 . . 7 99 100 66 100 Level 1 16 | . . . . . 55 7 15 . . . 74 . . 33 . Level 2 1 | . . . . . . . . . . . 18 . . . . Level 3 . | . . . . . . . . . . . . . . . . Level 4 . | . . . . . . . . . . . . . . . . Level 5 . | . . . . . . . . . . . . . . . . High Security . | . . . . . . . . . . . . . . . . Max Security . | . . . . . . . . . . . . . . . . Squads Dispatched 15 | . . . . . 2 2 . 1 . 1 . 4 . . 5 Investigation 6 | . . . . . 1 1 . 1 . 1 . 1 . . 1 Extermination 4 | . . . . . . 1 . . . . . 1 . . 2 Reinforcement 3 | . . . . . 1 . . . . . . 2 . . . Assault . | . . . . . . . . . . . . . . . . Garrison 2 | . . . . . . . . . . . . . . . 2 Intercept . | . . . . . . . . . . . . . . . . Construction Impeded 1 | . . . . . . . . . . . . 1 . . . Haulers Reinforced 1 | . . . . . . . . . . . . 1 . . . Stealth | -11 -10 -10 -10 -9 -8 -7 -6 -5 -5 -5 -4 -3 -2 -2 -2 --------- Run | Scr Mat Min Exi Min Mat Fac Fac Fac Upp Upp Fac Res Res Gar Res Distress Signals 5 | . . . . . 1 . . . . . 1 2 . . 1 Communications Jammed . | . . . . . . . . . . . . . . . . Distress Signals . | . . . . . . . . . . . . . . . . Times Spotted 126 | . 7 . . 11 12 5 3 1 6 25 7 14 . 13 22 Peak Tracking Total 13 | . 4 . . 3 3 3 2 1 6 13 3 8 . 7 10 Tactical Retreats 14 | . . . . 1 . 1 . . 2 2 . 2 . 5 1 Traps | -11 -10 -10 -10 -9 -8 -7 -6 -5 -5 -5 -4 -3 -2 -2 -2 ------- Run | Scr Mat Min Exi Min Mat Fac Fac Fac Upp Upp Fac Res Res Gar Res Traps Triggered 4 | . 1 . . . . 1 . . . . . 1 . . 1 Indirectly . | . . . . . . . . . . . . . . . . Trap Hack Attempts . | . . . . . . . . . . . . . . . . Triggered . | . . . . . . . . . . . . . . . . Disarmed . | . . . . . . . . . . . . . . . . Reprogrammed 1 | . . . . . . . . . . . 1 . . . . Reused . | . . . . . . . . . . . . . . . . Traps Extracted . | . . . . . . . . . . . . . . . . Installed . | . . . . . . . . . . . . . . . . Triggered 2 | . . . . 1 . . . . 1 . . . . . . Machines | -11 -10 -10 -10 -9 -8 -7 -6 -5 -5 -5 -4 -3 -2 -2 -2 ---------- Run | Scr Mat Min Exi Min Mat Fac Fac Fac Upp Upp Fac Res Res Gar Res Machines Disabled 13 | . . . . . 1 5 2 . . 3 2 . . . . Max in Single Turn 4 | . . . . . 1 4 2 . . 1 1 . . . . Machines Sabotaged . | . . . . . . . . . . . . . . . . Garrisons Compromised . | . . . . . . . . . . . . . . . . Overloaded Fab Kills . | . . . . . . . . . . . . . . . . Fab Network Shutdowns . | . . . . . . . . . . . . . . . . Hacking | -11 -10 -10 -10 -9 -8 -7 -6 -5 -5 -5 -4 -3 -2 -2 -2 --------- Run | Scr Mat Min Exi Min Mat Fac Fac Fac Upp Upp Fac Res Res Gar Res Machines Accessed 32 | . . . 1 1 4 3 4 4 2 1 5 3 1 . 3 Terminals 18 | . . . . . 3 1 3 4 1 1 3 . . . 2 Fabricators 2 | . . . . . . 1 . . . . . 1 . . . Repair Stations 1 | . . . . . . . . . . . 1 . . . . Recycling Units 2 | . . . . . . . . . . . 1 . . . 1 Scanalyzers 5 | . . . . . 1 1 1 . . . . 2 . . . Garrison Access 1 | . . . . . . . . . . . . . 1 . . Total Hacks 123 | . . . 1 1 18 11 11 12 2 4 39 13 3 . 8 Successful 88 | . . . 1 1 11 10 8 8 2 4 33 6 1 . 3 Failed 35 | . . . . . 7 1 3 4 . . 6 7 2 . 5 Catastrophic 1 | . . . . . 1 . . . . . . . . . . Database Lockouts . | . . . . . . . . . . . . . . . . Manual 2 | . . . 1 . . . . . . . 1 . . . . Terminals 76 | . . . . . 11 4 9 12 1 4 30 . . . 5 Fabricators 6 | . . . . . . 3 . . . . . 3 . . . Repair Stations 4 | . . . . . . . . . . . 4 . . . . Recycling Units 8 | . . . . . . . . . . . 5 . . . 3 Scanalyzers 23 | . . . . . 7 4 2 . . . . 10 . . . Garrison Access 3 | . . . . . . . . . . . . . 3 . . Terminal Hacks 58 | . . . 1 1 6 3 6 8 2 4 27 . . . . Record 24 | . . . . . . 2 2 6 1 4 9 . . . . Prototype ID Bank 2 | . . . . . . . . . . . 2 . . . . Open Door 2 | . . . . 1 . . . . 1 . . . . . . Level Access Points 2 | . . . . . 1 . 1 . . . . . . . . Branch Access Points 1 | . . . . . . . . . . . 1 . . . . Emergency Access Points 3 | . . . . . . 1 . . . . 2 . . . . Alert Level 3 | . . . . . . . . . . . 3 . . . . Unreport Threat 2 | . . . . . . . . 1 . . 1 . . . . Locate Traps 2 | . . . . . 1 . . . . . 1 . . . . Reprogram Traps 1 | . . . . . . . . . . . 1 . . . . Dispatch Records 1 | . . . . . . . 1 . . . . . . . . Security Status 1 | . . . . . . . . . . . 1 . . . . Surveillance Status 1 | . . . . . 1 . . . . . . . . . . Transport Status 1 | . . . . . 1 . . . . . . . . . . Investigation Status 2 | . . . . . . . 1 . . . 1 . . . . Reinforcement Status 1 | . . . . . . . . . . . 1 . . . . Assault Status 1 | . . . . . . . . . . . 1 . . . . Recall Investigation 1 | . . . . . . . 1 . . . . . . . . Hauler Manifests 3 | . . . . . 1 . . . . . 2 . . . . Registered Prototypes 1 | . . . . . 1 . . . . . . . . . . Zone Layout 2 | . . . . . . . . 1 . . 1 . . . . EX-Prototype ID Bank 1 | . . . 1 . . . . . . . . . . . . Fabricator Hacks 3 | . . . . . . 3 . . . . . . . . . Load Schematic 2 | . . . . . . 2 . . . . . . . . . Build 1 | . . . . . . 1 . . . . . . . . . Repair Station Hacks 1 | . . . . . . . . . . . 1 . . . . Scan Component 1 | . . . . . . . . . . . 1 . . . . Recycling Unit Hacks 8 | . . . . . . . . . . . 5 . . . 3 Recycle Component 2 | . . . . . . . . . . . 2 . . . . Process 2 | . . . . . . . . . . . 2 . . . . Report Inventory 2 | . . . . . . . . . . . 1 . . . 1 Retrieve Matter 2 | . . . . . . . . . . . . . . . 2 Scanalyzer 17 | . . . . . 5 4 2 . . . . 6 . . . Insert Component 9 | . . . . . 3 2 1 . . . . 3 . . . Analyze 8 | . . . . . 2 2 1 . . . . 3 . . . Garrison Access Hacks 1 | . . . . . . . . . . . . . 1 . . Unlock Access 1 | . . . . . . . . . . . . . 1 . . Unauthorized Hacks . | . . . . . . . . . . . . . . . . Terminals . | . . . . . . . . . . . . . . . . Fabricators . | . . . . . . . . . . . . . . . . Repair Stations . | . . . . . . . . . . . . . . . . Recycling Units . | . . . . . . . . . . . . . . . . Scanalyzers . | . . . . . . . . . . . . . . . . Garrison Access . | . . . . . . . . . . . . . . . . Data Cores Recovered . | . . . . . . . . . . . . . . . . Used . | . . . . . . . . . . . . . . . . Hacking Detections 26 | . . . . . 4 3 4 4 . 1 3 3 1 . 3 Full Trace Events 6 | . . . . . 1 1 . 1 . 1 . 1 . . 1 Feedback Events 1 | . . . . . . . . . . . . 1 . . . Corruption 1 | . . . . . . . . . . . . 1 . . . Feedback Blocked . | . . . . . . . . . . . . . . . . Robot Schematics Acquired . | . . . . . . . . . . . . . . . . Robots Built . | . . . . . . . . . . . . . . . . Matter . | . . . . . . . . . . . . . . . . Time . | . . . . . . . . . . . . . . . . Total Robot Build Rating . | . . . . . . . . . . . . . . . . Part Schematics Acquired 6 | . . . . . 2 . 1 . . . . 3 . . . Parts Built 1 | . . . . . . 1 . . . . . . . . . Matter 146 | . . . . . . 146 . . . . . . . . . Time 36 | . . . . . . 36 . . . . . . . . . Total Part Build Rating 3 | . . . . . . 3 . . . . . . . . . Parts Repaired . | . . . . . . . . . . . . . . . . Time . | . . . . . . . . . . . . . . . . Parts Recycled 2 | . . . . . . . . . . . 2 . . . . Recycled Matter 39 | . . . . . . . . . . . 39 . . . . Retrieved Matter . | . . . . . . . . . . . . . . . . Retrieved Components . | . . . . . . . . . . . . . . . . Parts Scanalyzed 9 | . . . . . 3 2 1 . . . . 3 . . . Part Schematics Acquired 6 | . . . . . 2 . 1 . . . . 3 . . . Parts Damaged . | . . . . . . . . . . . . . . . . Bothacking | -11 -10 -10 -10 -9 -8 -7 -6 -5 -5 -5 -4 -3 -2 -2 -2 ------------ Run | Scr Mat Min Exi Min Mat Fac Fac Fac Upp Upp Fac Res Res Gar Res Used RIF Installer 1 | . . . . . . . . . . . . . . 1 . Robots Hacked 2 | . . . . . . . . . . . . . . 2 . Non-combat . | . . . . . . . . . . . . . . . . Combat 2 | . . . . . . . . . . . . . . 2 . Robot Hacks Applied 3 | . . . . . . . . . . . . . . 3 . parse_system 3 | . . . . . . . . . . . . . . 3 . Relay Couplers Released . | . . . . . . . . . . . . . . . . Robots Rewired . | . . . . . . . . . . . . . . . . Allies Hacked . | . . . . . . . . . . . . . . . . Hacks Repelled . | . . . . . . . . . . . . . . . . Allies | -11 -10 -10 -10 -9 -8 -7 -6 -5 -5 -5 -4 -3 -2 -2 -2 -------- Run | Scr Mat Min Exi Min Mat Fac Fac Fac Upp Upp Fac Res Res Gar Res Total Allies 6 | . . . . 3 . 3 . . . . . . . . . Largest Group 3 | . . . . 3 2 3 . . . . . . . . . Highest-Rated Group 93 | . . . . 40 29 93 . . . . . . . . . Highest-Rated Ally 31 | . . . . 16 16 31 . . . . . . . . . Total Orders . | . . . . . . . . . . . . . . . . Ally Attacks 34 | . . . . 10 11 13 . . . . . . . . . Total Damage 426 | . . . . 97 112 217 . . . . . . . . . Kills 9 | . . . . 6 2 1 . . . . . . . . . Allies Corrupted 1 | . . . . . . 1 . . . . . . . . . Allies Melted . | . . . . . . . . . . . . . . . . Intel | -11 -10 -10 -10 -9 -8 -7 -6 -5 -5 -5 -4 -3 -2 -2 -2 ------- Run | Scr Mat Min Exi Min Mat Fac Fac Fac Upp Upp Fac Res Res Gar Res Robot Analysis Total . | . . . . . . . . . . . . . . . . Derelict Logs Recovered 1 | . . . . 1 . . . . . . . . . . . Drone Launches 2 | . . . . 2 . . . . . . . . . . . Drone Recoveries . | . . . . . . . . . . . . . . . . Exploration | -11 -10 -10 -10 -9 -8 -7 -6 -5 -5 -5 -4 -3 -2 -2 -2 ------------- Run | Scr Mat Min Exi Min Mat Fac Fac Fac Upp Upp Fac Res Res Gar Res Turns Passed 5366 | 60 224 23 345 873 419 384 332 246 163 110 449 303 169 465 801 Spaces Moved 5737 | 53 181 26 374 482 570 652 597 439 310 96 675 477 118 232 455 Core 13 | 6 . . . 3 . . . . . . . . . . 4 Treads 1214 | . . . . 476 2 . . . . . . . 53 232 451 Legs . | . . . . . . . . . . . . . . . . Wheels 631 | 47 181 26 374 3 . . . . . . . . . . . Hover . | . . . . . . . . . . . . . . . . Flight 3879 | . . . . . 568 652 597 439 310 96 675 477 65 . . Fastest Speed 42 | 50 90 90 90 90 50 50 50 42 42 42 42 42 90 155 50 Average Speed 75 | 85 90 90 90 161 50 50 50 43 42 48 42 45 129 158 147 Slowest Speed 500 | 100 90 90 90 500 160 50 50 132 42 50 50 90 180 160 155 Overloaded Moves . | . . . . . . . . . . . . . . . . Propulsion Burnouts . | . . . . . . . . . . . . . . . . Robots Hopped 27 | . . . . . 3 . 1 7 . . 15 1 . . . Cave-ins Triggered . | . . . . . . . . . . . . . . . . Exploration Rate (%) 28 | 4 37 9 70 93 43 14 18 13 58 16 19 17 3 35 10 Regions Visited 15 Branch Regions 5 Pre-discovered Areas . | . . . . . . . . . . . . . . . . Known Exits Taken 3 | . . . . . 1 . 1 . . . . . 1 . . Unknown Exits Taken 11 | 1 1 1 1 1 . 1 . 1 1 1 1 1 . . . Scrap Searched 6 | . . . . 4 . . . . 2 . . . . . . Spaces Dug . | . . . . . . . . . . . . . . . . Terrain Destroyed 159 | . . . . . . 37 . . . 12 14 19 . 61 16 Melee . | . . . . . . . . . . . . . . . . Projectile 15 | . . . . . . . . . . . 14 1 . . . AOE 144 | . . . . . . 37 . . . 12 . 18 . 61 16 Terrain Rammed . | . . . . . . . . . . . . . . . . Walls Destroyed . | . . . . . . . . . . . . . . . . Machines Disabled . | . . . . . . . . . . . . . . . . Actions | -11 -10 -10 -10 -9 -8 -7 -6 -5 -5 -5 -4 -3 -2 -2 -2 --------- Run | Scr Mat Min Exi Min Mat Fac Fac Fac Upp Upp Fac Res Res Gar Res Total 6438 | 63 216 25 384 555 668 705 619 477 331 123 762 532 135 294 549 Wait 210 | . 3 . . 27 41 30 . 11 . . 33 10 1 18 36 Move 5669 | 52 180 25 373 481 563 651 594 425 309 95 645 474 117 230 455 Hop 25 | . . . . . 3 . 1 6 . . 14 1 . . . Pick Up 103 | 4 6 . 3 15 14 8 5 5 3 1 12 2 7 11 7 Fast Attach 37 | 6 3 . 1 3 6 1 4 3 2 . 6 . 1 . 1 Attach 58 | . 2 . 1 1 4 5 1 6 2 5 1 8 6 8 8 Detach 7 | . . . . . . 1 . 3 . . 1 . 1 . 1 Swap 61 | 1 5 . . 8 4 1 2 4 5 3 10 3 1 6 8 Drop 82 | . 4 . 6 8 16 5 7 8 3 . 12 1 1 1 10 Fire 164 | . 13 . . 12 17 3 5 6 7 19 28 15 . 20 19 Melee . | . . . . . . . . . . . . . . . . Ram . | . . . . . . . . . . . . . . . . Kick . | . . . . . . . . . . . . . . . . Crush 4 | . . . . . . . . . . . . . . . 4 Escape Stasis 18 | . . . . . . . . . . . . 18 . . . Rewire . | . . . . . . . . . . . . . . . . Trap . | . . . . . . . . . . . . . . . . Miscellaneous . | . . . . . . . . . . . . . . . . Route ------- -11/Scrapyard -10/Materials -10/Mines -10/Exiles (discovered 2 exits: *Min x2) -9/Mines (discovered 2 exits: *Mat x2) -8/Materials (discovered 3 exits: *Fac x3) -7/Factory (discovered 2 exits: *Fac / Low) -6/Factory (discovered 4 exits: *Fac x4) -5/Factory -5/Upper Caves -5/Upper Caves -4/Factory (discovered 5 exits: *Res / Upp x2 / Ext x2) -3/Research -2/Research -2/Garrison -2/Research History --------- Turn | Location | Event 7 | -11/Scrapyard | Discovered new exit (range 15) 61 | -11/Scrapyard | Entered Materials 107 | -10/Materials | Discovered new exit (range 16) 285 | -10/Materials | Entered Mines 302 | -10/Mines | Build established: Mutant 304 | -10/Mines | Deemed a non-threat by the Exiles lab entrance 304 | -10/Mines | Discovered new exit (range 5) 308 | -10/Mines | Entered Exiles 330 | -10/Exiles | Met 8R-AWN 346 | -10/Exiles | Met EX-HEX 372 | -10/Exiles | Met EX-BIN 383 | -10/Exiles | Aligned with FarCom system 384 | -10/Exiles | Given EX-Vault access code 409 | -10/Exiles | Opened EX-Vault 419 | -10/Exiles | Found Flying Fortress v7 439 | -10/Exiles | Warned to stay clear of 0b10 Research branches 465 | -10/Exiles | Met EX-DEC 527 | -10/Exiles | Discovered new exit (range 14) 641 | -10/Exiles | Discovered new exit (range 15) 653 | -10/Exiles | Left Exiles lab with Flying Fortress v7 653 | -10/Exiles | Entered Mines 1044 | -9/Mines | Assisted by bots powering up and referring to "LRC-V3" 1260 | -9/Mines | Found the Drone Emporium 1268 | -9/Mines | Found Prototype Device 1276 | -9/Mines | Identified Sensor Drone Bay 1466 | -9/Mines | Discovered new exit (range 12) 1477 | -9/Mines | Discovered new exit (range 11) 1526 | -9/Mines | Entered Materials 1526 | -8/Materials | Accompanied by 2 allies 1526 | -8/Materials | Evolved 4 slots: Propulsion x2, Utility x2 1884 | -8/Materials | Identified exit to Factory 1945 | -8/Materials | Entered Factory 1945 | -7/Factory | Evolved 2 slots: Power x1, Utility x1 1946 | -7/Factory | Identified exit to Lower Caves 2201 | -7/Factory | Fabricated Hacking Suite (x1) 2219 | -7/Factory | Allied Derelicts emerged from ambush trap array 2322 | -7/Factory | Discovered new exit (range 6) 2329 | -7/Factory | Entered another Factory area 2329 | -6/Factory | Evolved 2 slots: Utility x2 2560 | -6/Factory | Identified exit to Factory 2616 | -6/Factory | Build established: Hacker-Mutant 2661 | -6/Factory | Entered another Factory area 2661 | -5/Factory | Evolved 2 slots: Propulsion x1, Utility x1 2864 | -5/Factory | Discovered new exit (range 13) 2907 | -5/Factory | Entered Upper Caves 2991 | -5/Upper Caves | Spotted B-75 Beast 3010 | -5/Upper Caves | Encountered a Warlord checkpoint 3041 | -5/Upper Caves | Discovered new exit (range 7) 3070 | -5/Upper Caves | Entered another Upper Caves area 3102 | -5/Upper Caves | Attracted the attention of an 0b10 base 3107 | -5/Upper Caves | Discovered new exit (range 18) 3143 | -5/Upper Caves | Destroyed 19 combat bots 3148 | -5/Upper Caves | Lost 6 parts (1p1n2u2w) 3180 | -5/Upper Caves | Entered Factory 3180 | -4/Factory | Evolved 2 slots: Propulsion x1, Utility x1 3512 | -4/Factory | Build established: Hacker-Scout 3596 | -4/Factory | Identified exit to Upper Caves 3596 | -4/Factory | Identified exit to Extension 3623 | -4/Factory | Discovered new exit (range 16) 3629 | -4/Factory | Entered Research 3629 | -3/Research | Evolved 2 slots: Power x1, Propulsion x1 3744 | -3/Research | Spotted B-86 Titan 3923 | -3/Research | Discovered new exit (range 10) 3932 | -3/Research | Entered another Research area 3932 | -2/Research | Evolved 2 slots: Propulsion x1, Utility x1 3946 | -2/Research | Found Quantum Capacitor 3949 | -2/Research | Lost 9 parts (2p1n5u1w) 4011 | -2/Research | Found Prototype Processor 4012 | -2/Research | Identified Exp. Melee Analysis Suite 4100 | -2/Research | Identified exit to Garrison 4101 | -2/Research | Entered Garrison 4109 | -2/Garrison | Installed Relay Interface Framework 4152 | -2/Garrison | Triggered checkpoint 4237 | -2/Garrison | Spotted B-90 Cyclops 4238 | -2/Garrison | Triggered checkpoint 4547 | -2/Garrison | Lost 3 parts (2n1w) 4552 | -2/Garrison | Discovered new exit (range 8) 4563 | -2/Garrison | Identified exit to Research 4566 | -2/Garrison | Entered Research 4764 | -2/Research | Found Antimissile System 4888 | -2/Research | Build established: Scavenger-Skirmisher 5211 | -2/Research | Garrison activated, responded to threat 5289 | -2/Research | Lost 8 parts (2p3n2u1w) 5349 | -2/Research | System corruption reached 10% 5360 | -2/Research | Core integrity fell below 50% 5365 | -2/Research | Core integrity fell below 20% 5367 | -2/Research | Destroyed by B-74 Champion with Powered Hammer Last Messages --------------- 05350_ System Shield destroyed. 05351_ Dropped Antigrav Array. 05352_ Critical hit. 05352_ Antimissile System destroyed. 05352_ Adv. ECM Suite destroyed. 05353_ Dropped Imp. Energy Well. 05353_ Hacking Suite destroyed. 05353_ System corrupted by crushing effect (+4). 05354_ Discarded Adv. Terrain Scan Processor. 05355_ I:U6NOD#Q5BS47GHAIBRJEHDHY: 05355_ Hcp. Storage Unit destroyed. 05355_ System corrupted by crushing effect (+4). 05356_ Dropped Railgun. 05360_ Terminal disabled. 05361_ Detecting nearby Garrison Access. 05361_ K-01 Serf collects debris. 05365_ S-43 Plague suffers critical hit. 05365_ S-43 Plague destroyed. 05367_ K-01 Serf collects debris. [Achievement: 10k Club] Map ----- +----------------------------------------------------+ | ?# #??????????????????????????????????????????? | | ## #??????????????????????????????????????????? | | #??????????????????????????????????????????? | | ## #??????????????????????????????????????????? | | ?# #??????????????????????????????????????????? | | ?# #??????????????????????????????????????????? | | ?# #??????????????????????????????????????????? | | ?# ########## ????????????????????????????????? | | ?# ???? ??????????????????????? | | ?# ???? #?????????????????????? | | ?# ???? #?????????????????????? | | ?# ???? #?????????????????????? | | ?# ###+#######?????# #?????????????????????? | | ?# #???????????????# #?????????????????????? | | ?# #??g????????????# k ###+##?#??????????????? | | ?# #???????????????+ = #??????????????? | | ?# #???????????????# #??????????????? | | ?# #???????????????# +??????????????? | | ?# #???????????????# #??????????????? | | ?# #???????????????#R #??????????????? | | ?# #???????????????# """k #??????????????? | | ?# #???????????????# "T !!###+##?????????? | | ?# #????Y??????????#[ ""k ! p ????????? | | ## #???????????????#== p ????????? | | # #???????????????#!lbs ????????? | | # #???????????????# s@%= w ????????? | | # #?##????????????# s =###+#########?????????? | | # # ?????????????# #?????????????????????? | | # # ??????????????# #?????????????????????? | | + /???????????????# #?????????????????????? | | # #???????????????# #?????????????????????? | | # [ #???????????????# #?????????????????????? | | #!!| #???????????????# #?????????????????????? | | ###+#######???????????# #?????????????????????? | | = #???????????# #?????????????????????? | | #??????????## !#?????????????????????? | | """"" #??????????## =#?????????????????????? | | """"" #??????????## #?????????????????????? | | """"" #?########### #?????????????????????? | | #?# #k #?????????????????????? | | #?# # #?????????????????????? | | """"" #?# """ # #?????????????????????? | | """"" #?# ""T"" # #?????????????????????? | | """"" #?# "" "" + #?????????????????????? | | ### # ##????????????????????? | | + / # ##????????????????????? | | ############# + ##???????????????????? | | ????????????######### ##+#+ ###?????????????????? | | ??????????????????# #?????????????????? | | ??????????????????# #?????????????????? | +----------------------------------------------------+ Best States ------------- Heat Dissipation 99 Coolant Potential 80 Energy Generation 54 Energy Capacity 995 Matter Stores 300 Matter Capacity 450 Sight Range 16 Robot Scan Range 20 Terrain Scan Range 20 Terrain Scan Density 210 ECM Strength 3 Armor Coverage 450 Resistance: EM 25 Propulsion Shielding 66 Weapon Shielding 66 Point Defense Rating 240 Evasion (%) 61 Melee Accuracy 6 Core Analysis 6 Recoil Reduction 5 Offensive Hacking 20 Defensive Hacking 10 Item Schematics ----------------- Hacking Suite | -8/Materials | Scanalyzed Hcp. Storage Unit | -8/Materials | Scanalyzed Proton Missile Launcher | -6/Factory | Scanalyzed Imp. Medium Armor Plating | -3/Research | Scanalyzed Lrn. Sensor Array | -3/Research | Scanalyzed Lgt. Antimatter Reactor | -3/Research | Scanalyzed Robot Schematics ------------------ None Fabricated ------------ Hacking Suite | x1 | -7/Factory Alien Tech Used ----------------- None Achievements -------------- 10k Club Dangerous Findings I Spy Just What I Needed Maximum Efficiency Omniscient Cartographer Please Form A Line Power Corrupts Respectable Loadout Challenges ------------ None Game ------ Seed ResetCoreNanosword Manual? 0 Play Time 01:44:12 Cumulative 9.2 hours Start 2020.10.09 @ 19:55:59 End 2020.10.09 @ 21:41:46 Sessions 1 Manual Loads 0 Difficulty Rogue Special Mode None Game No. 15 Rogue 15 Adventurer 0 Explorer 0 Win Type - Total 0 Types 0/0/0/0/0/0/0/0/0 Lore% 16 Gallery% 21 Achievement% 17 Wizard Run 0 Options --------- ASCII 0 Keyboard 0 Movement Numpad Keybinds 0 Fullscreen 1 Font 18/SmallcapsGlow Map View 76x50 Tactical HUD 1 Map Filters NONE Filters NONE Steam 1 RUN: b5924378-4a1b-4fef-a136-8bfa4b7f889c